[Event "IM Marmaris Karia VI 2019"]
[Site "Marmaris"]
[Date "2019.04.25"]
[Round "9.4"]
[White "Arda, Cagil Irmak"]
[Black "Sibashvili, Giorgi"]
[Result "1/2-1/2"]
[ECO "C07"]
[WhiteElo "2070"]
[BlackElo "2398"]
[Annotator "NA RC"]
[PlyCount "85"]
[EventDate "2019.04.24"]
[EventType "schev"]
[EventCountry "TUR"]
[SourceTitle "playchess.com"]
[Source "ChessBase"]
[SourceQuality "1"]
[TimeControl "5400+30"]

1. e4 {[%emt 0:00:30]} e6 {[%emt 0:24:30]} 2. d4 {[%emt 0:00:00]} d5 {[%emt 0:00:30]} 3. Nd2 {[%emt 0:00:00]} c5 {[%emt 0:00:30]} 4. exd5 {[%emt 0:00:30]} Qxd5 {[%emt 0:00:30]} 5. Ngf3 {[%emt 0:00:30]} cxd4 {[%emt 0:00:30]} 6. Bc4 {[%emt 0:00:30]} Qd8 {[%emt 0:00:30]} 7. O-O {[%emt 0:00:30]} Nc6 {[%emt 0:00:30]} 8. Nb3 {[%emt 0:00:30]} a6 {[%emt 0:00:30] C07: French Tarrasch: 3...c5, 4 Ngf3 and 4 exd5 Qxd5} 9. Nbxd4 {[%emt 0:00:30]} Nxd4 {[%emt 0:00:30]} 10. Nxd4 {[%emt 0:00:30]} Qc7 {[%emt 0:00:30]} 11. Bb3 {[%emt 0:00:30]} Bd6 {[%emt 0:00:30]} 12. Qh5 {[%emt 0:00:00]} Nf6 {[%emt 0:13:30]} 13. Qh4 {[%emt 0:00:00]} Bd7 {[%emt 0:05:30]} 14. Bg5 {[%emt 0:00:00] [#]} h6 $146 {[%emt 0:07:30]} ({Predecessor:} 14... O-O-O 15. Rad1 h6 16. Bxf6 gxf6 {½-½ (24) Navara,D (2737)-Harikrishna,P (2737) Biel 2017}) 15. Bxf6 {[%emt 0:01:00]} gxf6 {[%emt 0:10:30]} 16. Qxf6 {[%emt 0:03:30]} (16. Rad1 $11) 16... Bxh2+ {[%emt 0:00:30]} 17. Kh1 {[%emt 0:00:30]} Qe5 {[%emt 0:07:30]} ({Black should try} 17... Be5 $17 18. Qh4 Bxd4 19. Qxd4 O-O-O) 18. Qh4 {[%emt 0:04:30]} Bf4 {[%emt 0:02:30]} 19. Nf3 {[%emt 0:08:30]} Qf5 $1 {[%emt 0:00:30]} 20. Rad1 {[%emt 0:01:30]} Rg8 {[%emt 0:01:30]} 21. Rd3 $2 {[%emt 0:03:30]} (21. Nd4 $17 Qg5 22. Qxg5 hxg5 23. Kg1) 21... Qg4 $11 {[%emt 0:05:09]} ({Black should try} 21... Bb5 $19 22. g3 Bxd3 23. cxd3 Qxd3) 22. Qxg4 {[%emt 0:00:30]} Rxg4 {[%emt 0:00:03]} 23. g3 {[%emt 0:08:30]} Bc7 {[%emt 0:00:30]} 24. Re1 {[%emt 0:00:30]} Bc6 {[%emt 0:00:30]} 25. Kg1 {[%emt 0:00:30]} Rd8 {[%emt 0:00:30]} 26. Rxd8+ {[%emt 0:00:30]} Kxd8 {[%emt 0:00:30]} 27. Ne5 {[%emt 0:01:30]} Bxe5 {[%emt 0:10:44]} 28. Rxe5 {[%emt 0:00:00]} Rd4 {[%emt 0:02:23]} 29. f4 {[%emt 0:06:00]} Rd2 {[%emt 0:01:11]} 30. Kf1 {[%emt 0:00:30]} Rg2 {[%emt 0:01:48]} 31. Re3 {[%emt 0:00:30]} b5 {[%emt 0:01:48]} 32. Rc3 {[%emt 0:01:30]} Bb7 {[%emt 0:00:12]} 33. a4 {[%emt 0:03:30]} b4 {[%emt 0:00:30]} 34. Rd3+ {[%emt 0:00:30]} Kc7 {[%emt 0:00:30]} 35. a5 {[%emt 0:00:30]} h5 {[%emt 0:01:19]} 36. Ba4 {[%emt 0:03:30]} Kc8 {[%emt 0:00:44]} 37. Bd7+ {[%emt 0:02:30]} Kc7 {[%emt 0:00:34]} 38. Ba4 {[%emt 0:00:30]} Kc8 {[%emt 0:00:09]} 39. Bd7+ {[%emt 0:00:00]} Kb8 {[%emt 0:00:26]} 40. Ba4 {[%emt 0:00:00]} Kc8 {[%emt 0:00:52]} 41. Bd7+ {[%emt 0:00:00]} Kb8 {[%emt 0:00:32]} 42. Ba4 {[%emt 0:00:00]} Kc8 {[%emt 0:00:31]} 43. Bd7+ {[%emt 0:00:00]} 1/2-1/2

[Event "IM Marmaris Karia VI 2019"]
[Site "Marmaris"]
[Date "2019.04.25"]
[Round "10.1"]
[White "Darban, Morteza"]
[Black "Suleymanli, Aydin"]
[Result "1/2-1/2"]
[ECO "D20"]
[WhiteElo "2307"]
[BlackElo "2334"]
[Annotator "NA"]
[PlyCount "26"]
[EventDate "2019.04.24"]
[EventType "schev"]
[EventCountry "TUR"]
[SourceTitle "playchess.com"]
[Source "ChessBase"]
[SourceQuality "1"]
[TimeControl "5400+30"]

1. d4 {[%emt 0:00:30]} d5 {[%emt 0:00:30]} 2. c4 {[%emt 0:00:00]} dxc4 {[%emt 0:00:00]} 3. e4 {[%emt 0:00:00]} Nf6 {[%emt 0:00:00]} 4. e5 {[%emt 0:00:00]} Nd5 {[%emt 0:00:00]} 5. Bxc4 {[%emt 0:00:00]} Nb6 {[%emt 0:00:00]} 6. Bb3 {[%emt 0:00:30]} Nc6 {[%emt 0:00:00]} 7. Nf3 {[%emt 0:00:00]} Bg4 {[%emt 0:00:00]} 8. Ng5 {[%emt 0:00:00]} Bxd1 {[%emt 0:00:30]} 9. Bxf7+ {[%emt 0:00:00]} Kd7 {[%emt 0:00:00]} 10. Be6+ {[%emt 0:00:00]} Ke8 {[%emt 0:00:00]} 11. Bf7+ {[%emt 0:00:30]} Kd7 {[%emt 0:00:00]} 12. Be6+ {[%emt 0:00:00]} Ke8 {[%emt 0:00:00]} 13. Bf7+ {[%emt 0:00:00]} Kd7 {[%emt 0:00:00]} 1/2-1/2